bitfinex/quotes_ETHUSD_20260129
["timestamp","ask_amount","ask_price","bid_price","bid_amount"]
[1769712020329,0.749,2798.6,2796.9,3.57487577]
[1769712020531,1.20541585,2798.7,2796.9,3.57487577]
[1769712020838,0.749,2798.7,2797.1,0.89378284]
[1769712021360,12.80215847,2798.7,2797.1,0.89378284]
[1769712022135,12.05315847,2798.7,2797.1,0.89378284]
[1769712022340,12.80215847,2798.6,2797.1,0.89378284]
[1769712022735,0.89333571,2798.5,2796.9,3.57487577]
[1769712022967,2.4758837,2798.4,2796.9,4.37926755]
[1769712023574,1.7268837,2798.4,2796.9,4.37926755]
[1769712023762,0.748,2798.3,2796.9,0.80439178]
[1769712024280,0.748,2798.2,2796.9,0.80439178]
[1769712024564,0.89329081,2798.7,2796.9,0.80439178]
[1769712024765,0.748,2798.6,2797.1,0.89378284]
[1769712025168,0.748,2798.6,2797.1,12.5104674]
[1769712025367,0.001,2798.8,2797.2,7.7613208]
[1769712025542,0.001,2798.8,2797.3,1.13839908]
[1769712026084,0.001,2798.8,2797.4,25.13553115]
[1769712026240,0.001,2799.3,2797.7,7.5277505]
[1769712026644,0.001,2799.3,2797.9,0.2335703]
[1769712026868,10.27,2800.2,2797.9,0.2335703]
[1769712026869,10.57554547,2800.6,2798.7,7.5277505]
[1769712027085,11.4682322,2800.6,2798.7,7.5277505]
[1769712027378,11.46822217,2800.6,2798.8,0.2335703]
[1769712027569,11.46822217,2800.6,2798.7,22.0277505]
[1769712027751,1.57867923,2800.5,2798.8,0.43795232]
[1769712028753,0.89272961,2800.4,2798.9,0.89320804]
[1769712029179,1.57867923,2800.5,2799.0,10.63553115]
[1769712029378,10.57554547,2801.3,2799.4,0.1024]
[1769712029379,0.89247465,2801.2,2799.4,0.1024]
[1769712029576,0.89247465,2801.2,2799.7,7.5277505]
[1769712029577,1.05755455,2801.2,2799.7,7.5277505]
[1769712030080,0.001,2801.5,2799.8,10.97150145]
[1769712030246,0.001,2801.5,2800.2,7.5277505]
[1769712030668,0.001,2801.5,2800.2,22.0277505]
[1769712030875,0.001,2801.5,2800.3,0.89276148]
[1769712031279,10.57654547,2801.5,2800.3,0.89276148]
[1769712031472,1.05765455,2801.4,2800.3,0.89276148]
[1769712031778,0.001,2801.5,2799.6,3.57184254]
[1769712031779,10.57654547,2801.5,2799.6,3.57184254]
[1769712032078,10.57654547,2801.5,2800.2,0.89278875]
[1769712032585,11.46760613,2802.5,2800.6,7.5277505]
[1769712032950,11.46760613,2802.5,2800.7,0.89263398]
[1769712033151,1.50357535,2802.4,2800.8,1.19909204]
[1769712034186,10.65184536,2802.4,2800.8,1.19909204]
[1769712034493,10.65184536,2802.4,2800.7,0.89263398]
[1769712034780,10.65184536,2802.4,2800.6,0.89265947]
[1769712034990,9.14827001,2802.2,2799.8,0.1024]
[1769712035308,9.14827001,2802.2,2799.8,0.89292092]
[1769712035448,9.14827001,2802.2,2799.5,14.5]
[1769712035449,9.14827001,2802.0,2799.1,1.13839908]
[1769712035656,9.14827001,2802.0,2799.7,0.89294317]
[1769712035888,5.07207265,2802.4,2799.7,0.89294317]
[1769712035889,22.95566524,2807.7,2807.6,0.10544815]
[1769712036197,9.14827001,2812.4,2806.4,0.10544815]
[1769712036198,0.25328393,2808.5,2806.4,7.5277505]
[1769712036356,7.5277505,2810.1,2805.9,7.5277505]
[1769712036357,0.748,2808.6,2805.9,7.5277505]
[1769712036560,0.748,2808.5,2806.6,0.2335703]
[1769712036758,0.748,2808.4,2806.6,0.2335703]
[1769712036965,0.748,2808.4,2806.8,0.89069402]
[1769712037166,8.52077505,2810.0,2806.9,7.68000442]
[1769712037167,3.252,2808.3,2806.9,7.68000442]
[1769712037368,4.14172749,2809.9,2807.0,0.2335703]
[1769712037603,0.748,2809.8,2807.2,0.2335703]
[1769712037784,3.252,2809.9,2807.3,14.64952715]
[1769712038096,3.252,2809.9,2808.1,1.93650642]
[1769712038097,9.99222895,2809.8,2808.1,1.93650642]
[1769712038261,9.99222895,2809.8,2808.2,4.0457862]
[1769712038262,6.41502895,2809.8,2808.2,4.0457862]
[1769712038600,9.14827001,2810.7,2808.3,14.7335703]
[1769712038889,9.14827001,2810.5,2808.1,7.86471034]
[1769712039092,9.14827001,2810.5,2808.4,0.2335703]
[1769712039595,10.03779457,2810.5,2806.8,10.28422066]
[1769712039796,9.14827001,2809.9,2806.8,3.5626836]
[1769712039959,9.14827001,2809.7,2806.3,3.56338707]
[1769712040164,9.24799754,2809.5,2806.8,3.56274652]
[1769712040395,9.24799754,2809.3,2806.4,3.56317737]
[1769712040700,9.14827001,2809.3,2806.7,0.89071108]
[1769712040899,10.35293355,2809.3,2805.7,14.5]
[1769712041202,9.14827001,2808.9,2805.8,1.91164715]
[1769712041373,9.24799754,2808.4,2805.7,0.89103696]
[1769712041596,9.14827001,2807.9,2804.0,13.56628152]
[1769712041803,9.14827001,2807.7,2805.5,0.89108754]
[1769712041997,0.89617132,2808.4,2804.9,3.56510633]
[1769712041998,9.14827001,2807.5,2805.8,0.89101066]
[1769712042230,9.14827001,2807.5,2805.5,0.89109397]
[1769712042428,9.14827001,2807.3,2805.6,0.89107431]
[1769712042721,9.14827001,2807.3,2805.2,0.89118823]
[1769712042895,9.14827001,2807.3,2805.4,0.89113013]
[1769712043096,9.14827001,2806.9,2805.1,0.89123382]
[1769712043292,9.14827001,2806.9,2805.0,0.89124938]
[1769712043605,9.14827001,2806.7,2805.0,0.89124938]
[1769712043805,9.14827001,2806.7,2805.0,0.89126447]
[1769712044027,9.14827001,2806.7,2803.2,15.86527562]
[1769712044227,9.14827001,2806.5,2804.4,0.8914419]
[1769712044391,9.14827001,2806.5,2804.5,0.891401]
[1769712044591,9.14827001,2806.5,2804.0,3.56627621]
[1769712044792,0.989527,2806.6,2804.1,3.9227695]
[1769712044793,9.14827001,2806.3,2804.1,3.9227695]
[1769712045042,9.14827001,2805.9,2804.1,3.92279194]
[1769712045345,9.14827001,2805.9,2804.2,0.89151986]
[1769712045494,9.89527001,2805.8,2804.1,0.89153984]
[1769712045690,9.89527001,2805.8,2803.2,0.54736172]
[1769712046010,0.989527,2805.7,2804.1,0.89152982]
[1769712046327,10.03921797,2806.0,2804.1,0.89152982]
[1769712047239,10.03921797,2806.0,2803.7,3.56664121]
[1769712047240,9.14827001,2805.8,2803.7,3.56664121]
[1769712048140,9.14827001,2805.8,2803.8,0.2335703]
[1769712048453,0.989427,2805.7,2804.0,0.2335703]
[1769712048625,1.63694796,2806.0,2804.0,0.2335703]
[1769712048824,0.746,2805.9,2804.0,0.2335703]
[1769712049035,0.89101147,2805.8,2804.0,0.2335703]
[1769712049236,0.89101147,2805.8,2804.1,0.89155165]
[1769712049454,9.66837575,2805.7,2804.1,0.89155165]
[1769712049748,9.89427001,2805.6,2804.0,0.89156822]
[1769712049947,9.89427001,2805.6,2804.0,0.8915577]
[1769712050148,9.14827001,2805.4,2804.0,0.8915577]
[1769712050354,9.14827001,2805.4,2803.7,0.8916782]
[1769712050655,9.14827001,2805.2,2803.5,0.89172729]
[1769712050857,9.14827001,2805.0,2803.2,1.43919241]
[1769712051154,9.14827001,2804.8,2802.1,0.892188]
[1769712051330,9.14827001,2804.8,2802.2,0.1024]
[1769712051528,9.14827001,2804.8,2802.1,0.892188]
[1769712051730,9.14827001,2804.6,2802.2,0.446094]
[1769712053151,9.14827001,2804.4,2802.3,0.89212432]
[1769712054044,9.14827001,2804.4,2802.2,1.33822789]
[1769712054761,9.14827001,2804.4,2804.1,0.001]
[1769712054932,9.14827001,2804.2,2802.3,0.49069446]
[1769712055132,0.89161525,2803.9,2802.4,0.89209249]
[1769712055856,13.4190537,2803.9,2802.4,0.89209249]
[1769712056051,13.4190537,2803.9,2802.3,1.38279735]
[1769712056364,13.4190537,2803.9,2802.3,0.89210289]
[1769712057172,13.4190537,2803.9,2801.8,0.2335703]
[1769712057498,0.89145628,2804.4,2801.9,0.1024]
[1769712057666,0.746,2804.1,2801.9,0.1024]
[1769712058265,0.746,2804.1,2802.2,0.2335703]
[1769712058784,0.746,2804.1,2802.4,0.2335703]
[1769712058992,0.746,2804.1,2802.5,1.47335703]
[1769712059158,0.89139271,2804.6,2802.8,0.2335703]
[1769712059592,0.89139271,2804.6,2802.9,14.5]
[1769712059767,13.41870404,2805.1,2803.0,0.2335703]
[1769712060091,16.09250738,2805.0,2803.2,0.2335703]
[1769712060406,16.09250738,2805.0,2803.0,0.2335703]
[1769712060582,16.09250738,2805.0,2803.2,0.2335703]
[1769712060759,16.09250738,2805.0,2802.8,0.2335703]
[1769712060760,3.768,2804.8,2802.8,0.2335703]
[1769712060959,1.62954385,2804.7,2802.8,0.2335703]
[1769712061162,0.89142449,2804.5,2802.6,3.56798801]
[1769712061356,12.52743845,2804.3,2802.6,3.56798801]
[1769712061769,3.768,2804.4,2802.6,3.56798801]
[1769712061991,0.89142449,2804.5,2802.6,3.56798801]
[1769712061992,0.89142449,2804.5,2802.7,1.37980842]
[1769712062193,0.89139831,2804.6,2802.8,0.2335703]
[1769712062857,0.89139831,2804.6,2802.7,1.37980842]
[1769712062858,12.52743845,2804.3,2802.7,1.37980842]
[1769712063080,12.52743845,2804.3,2802.6,3.56798801]
[1769712063272,0.89151986,2804.2,2802.6,3.56798801]
[1769712063698,0.89151986,2804.2,2802.7,0.2335703]
[1769712063860,13.4187614,2804.9,2802.8,0.1024]
[1769712064060,0.89132915,2804.8,2803.3,0.2335703]
[1769712064264,13.4187676,2804.8,2802.9,14.5]
[1769712065087,17.1867676,2804.8,2802.9,14.5]
[1769712065282,17.1867676,2804.8,2802.9,0.89193335]
[1769712065482,13.4187676,2804.8,2803.0,0.2335703]
[1769712065669,13.4187676,2804.8,2802.9,0.89193335]
[1769712065670,15.47370768,2804.8,2802.9,0.89193335]
[1769712066069,19.24170768,2804.8,2802.9,0.89193335]
[1769712066275,15.47370768,2804.8,2803.0,0.2335703]
[1769712067065,1.63728916,2805.0,2803.3,7.86471034]
[1769712067291,1.63728916,2805.0,2803.4,0.89177427]
[1769712067798,12.52743845,2805.4,2803.4,0.89177427]
[1769712067799,16.09142289,2805.9,2803.6,0.1024]
[1769712067999,13.41841817,2805.9,2804.1,0.2335703]
[1769712068295,0.8909612,2806.0,2804.2,0.53110534]
[1769712068498,12.52743845,2806.1,2804.2,0.53110534]
[1769712069168,3.768,2806.0,2804.2,0.53110534]
[1769712069873,0.89097972,2805.9,2804.3,0.89148807]
[1769712070073,0.89097972,2805.9,2804.4,0.49885457]
[1769712070470,3.768,2806.6,2804.5,0.2335703]
[1769712071013,13.27343845,2806.7,2804.7,0.2335703]
[1769712071222,15.04612103,2806.7,2804.8,0.97450246]
[1769712072330,0.8907575,2806.6,2804.9,1.12486767]
[1769712072606,0.8907575,2806.6,2804.9,0.89129737]
[1769712072815,0.8907575,2806.6,2805.0,0.2335703]
[1769712073111,16.08958418,2807.3,2805.5,0.2335703]
[1769712073112,0.89056711,2807.2,2805.5,0.2335703]
[1769712073321,1.60895842,2807.3,2805.5,0.2335703]
[1769712073609,0.89051393,2807.4,2805.5,0.2335703]
[1769712074174,13.41795238,2807.4,2805.3,0.2335703]
[1769712074369,13.41795238,2807.4,2805.4,0.89113851]
[1769712075478,13.41795238,2807.4,2805.5,0.2335703]
[1769712075815,13.41795238,2807.4,2805.4,0.89113851]
[1769712075816,13.27343845,2807.3,2805.4,0.89113851]
[1769712075997,13.27343845,2807.3,2805.5,0.2335703]
[1769712076384,0.89056711,2807.2,2805.6,0.89107499]
[1769712076576,0.89056711,2807.2,2805.7,0.2335703]
[1769712077207,0.89056711,2807.2,2805.3,3.56455407]
[1769712077208,12.52743845,2807.1,2805.1,3.56492324]
[1769712077408,12.52743845,2807.1,2805.2,0.89118075]
[1769712077619,3.22484024,2807.2,2804.4,0.49885457]
[1769712077620,12.52743845,2806.7,2804.4,0.49885457]
[1769712077874,12.52743845,2806.5,2804.8,0.89131252]
[1769712078123,12.52743845,2806.5,2804.2,4.0971305]
[1769712078284,12.52743845,2806.5,2804.6,0.89136547]
[1769712078622,12.52743845,2806.5,2804.1,3.56612955]
[1769712078623,12.52743845,2806.3,2804.1,20.95193993]
[1769712078775,0.746,2806.2,2804.1,13.08722959]
[1769712078971,1.32734385,2806.1,2804.2,1.66534639]
[1769712079258,1.32734385,2806.1,2804.1,0.1024]
[1769712079705,13.8547823,2806.1,2803.8,0.89164705]
[1769712080314,13.8547823,2806.1,2803.9,0.2335703]
[1769712080611,12.52743845,2805.9,2804.0,0.89158345]
[1769712080997,12.52743845,2805.8,2804.0,0.89158345]
[1769712081301,12.52743845,2805.4,2803.9,0.89160291]
[1769712081502,12.52743845,2805.0,2802.5,3.56812044]
[1769712081706,12.52743845,2804.8,2803.5,0.89171933]
[1769712081927,1.32734385,2804.7,2803.5,0.89171933]
[1769712082076,13.8547823,2804.7,2803.0,0.89188025]
[1769712082416,13.8547823,2804.7,2802.4,0.002]
[1769712082417,12.52743845,2804.3,2802.4,3.57033311]
[1769712082600,12.52743845,2804.1,2802.4,0.002]
[1769712084723,13.4190219,2804.0,2802.4,0.002]
[1769712084923,14.97197402,2803.9,2802.4,0.002]
[1769712085422,13.7239981,2803.8,2802.4,0.002]
[1769712086823,14.61567695,2803.7,2802.4,0.002]
[1769712092639,14.61567695,2803.7,2802.6,0.002]
[1769712095628,14.61567695,2803.7,2802.4,0.002]
[1769712095801,3.768,2803.5,2802.4,0.002]
[1769712097014,17.37291603,2803.5,2802.4,0.002]
[1769712097340,0.89186971,2803.1,2802.4,0.002]
[1769712097510,0.747,2803.0,2802.4,0.002]
[1769712097831,0.747,2803.0,2802.1,0.002]
[1769712098035,3.00492646,2803.0,2802.1,0.002]
[1769712098714,0.747,2803.0,2802.1,0.002]
[1769712099205,0.89193335,2802.9,2802.1,0.002]
[1769712099404,0.747,2803.0,2802.1,0.002]
[1769712100206,1.63890281,2803.0,2802.1,0.002]
[1769712100608,1.63890643,2803.0,2802.1,0.002]
[1769712100835,0.89177427,2803.4,2802.1,0.002]
[1769712101144,0.747,2803.3,2802.1,0.002]
[1769712101641,1.63883263,2803.3,2802.1,0.002]
[1769712101845,0.747,2803.3,2802.1,0.002]
[1769712102550,0.001,2803.9,2802.5,7.88162834]
[1769712102845,0.001,2803.9,2802.6,13.94256246]
[1769712103059,0.747,2804.2,2802.6,13.94256246]
[1769712103210,13.60491603,2805.0,2802.6,0.2335703]
[1769712103211,0.89129737,2804.9,2802.6,0.2335703]
[1769712103546,0.89129737,2804.9,2803.2,0.2335703]
[1769712103718,0.89129737,2804.9,2803.3,2.28606233]
[1769712104555,14.4962134,2804.9,2803.3,2.28606233]
[1769712104714,14.4962134,2804.9,2803.3,0.89180608]
[1769712104921,0.001,2803.5,2803.3,0.89180608]
[1769712105222,14.4962134,2804.9,2803.3,0.89180608]
[1769712105830,0.89136092,2804.7,2803.0,3.56755517]
[1769712106014,3.43087736,2804.7,2803.1,0.44594885]
[1769712107922,3.43087736,2804.7,2803.2,0.89183789]
[1769712108141,0.89136092,2804.7,2803.2,0.89183789]
[1769712108510,14.49627695,2804.7,2803.2,0.89183789]
[1769712108708,13.60491603,2804.4,2802.6,3.56809953]
[1769712108951,13.60491603,2804.4,2803.0,3.56757296]
[1769712109112,13.60491603,2804.4,2803.1,0.89185257]
[1769712109318,0.89136092,2804.7,2803.1,0.89185257]
[1769712110118,3.56544371,2804.8,2803.0,3.56757296]
[1769712110317,17.17035974,2804.8,2803.0,3.56757296]
[1769712110517,13.60491603,2804.7,2803.0,3.56757296]
[1769712110718,1.71703597,2804.6,2803.1,0.44594745]
[1769712111131,3.56544371,2804.8,2803.2,0.2335703]
[1769712111651,17.17035974,2804.8,2803.1,0.44594745]
[1769712111852,13.60491603,2804.7,2803.1,0.44594745]
[1769712112234,14.49630874,2804.6,2803.2,0.89183789]
[1769712116955,0.89139271,2804.6,2803.2,0.89183789]
[1769712117247,0.89139271,2804.6,2803.3,0.49251369]
[1769712117457,0.001,2804.5,2803.3,0.49251369]
[1769712118651,0.001,2804.5,2803.4,0.89177427]
[1769712119233,0.001,2804.5,2803.3,1.38430035]
[1769712119428,13.90820453,2804.5,2803.3,1.38430035]
[1769712119634,15.65558207,2804.5,2803.3,1.38430035]
[1769712119843,15.65558207,2804.5,2803.3,0.002]
[1769712120027,15.65558207,2804.5,2803.3,0.89379784]
[1769712120637,0.001,2804.5,2803.3,0.002]
[1769712120855,14.79861827,2804.6,2803.3,0.002]
[1769712122533,0.89141374,2804.6,2803.3,0.002]
[1769712122752,14.79861827,2804.6,2803.3,0.002]
[1769712123481,0.89141374,2804.6,2803.3,0.002]
[1769712123630,0.8913513,2804.8,2803.4,12.98524174]
[1769712123831,4.31078673,2805.3,2803.4,12.98524174]
[1769712124533,4.31078673,2805.3,2803.7,8.12115767]
[1769712124929,0.89113104,2805.5,2803.8,13.87688879]
[1769712125129,0.89104323,2805.7,2804.3,8.12115767]
[1769712125431,0.89104323,2805.7,2804.4,0.81211577]
[1769712125648,0.89104323,2805.7,2804.0,0.2335703]
[1769712125852,14.79812074,2806.1,2804.2,0.2335703]
[1769712126049,14.79812074,2806.1,2803.8,15.39164705]
[1769712126254,14.79812074,2806.1,2803.9,0.2335703]
[1769712126459,13.90720453,2805.9,2804.0,1.48636914]
[1769712126661,13.90720453,2805.9,2803.6,17.06425964]
[1769712126662,13.90720453,2805.2,2803.1,12.75167144]
[1769712126875,1.91077856,2806.0,2803.3,0.002]
[1769712126876,0.89126559,2805.0,2803.3,0.002]
[1769712127335,0.89126559,2805.0,2803.3,12.98724174]
[1769712127534,18.21826691,2805.1,2803.6,12.98524174]
[1769712127535,1.63725513,2805.1,2803.6,12.98524174]
[1769712127763,1.63725513,2805.1,2803.7,2.11063994]
[1769712127959,1.63725513,2805.1,2803.6,0.2335703]
[1769712128350,1.63725513,2805.1,2803.3,13.08964174]
[1769712128859,1.63725513,2805.1,2803.5,0.2335703]
[1769712129027,1.63725513,2805.1,2803.4,13.64344571]
[1769712129231,15.54445966,2805.1,2803.4,0.89177427]
[1769712129434,1.91093136,2805.0,2803.6,0.002]
[1769712129742,1.63825513,2805.1,2803.6,12.98724174]
[1769712130156,1.63823404,2805.1,2803.6,12.98724174]
[1769712131166,1.63823404,2805.1,2803.8,0.2335703]
[1769712131457,1.63823404,2805.1,2803.7,0.89167885]
[1769712131658,1.63823404,2805.1,2803.8,0.44603943]
[1769712132567,13.90720453,2806.3,2803.9,12.75167144]
[1769712132743,13.90720453,2806.1,2804.4,0.2335703]
[1769712133065,14.79815249,2806.0,2804.6,0.89139271]
[1769712133445,14.79815249,2806.0,2804.5,0.89142339]
[1769712134854,14.79815249,2806.0,2803.6,0.002]
[1769712134855,13.90720453,2805.9,2803.6,0.002]
[1769712135070,13.90720453,2805.3,2803.6,0.002]
[1769712135372,13.90720453,2805.0,2803.6,0.002]
[1769712135575,13.90720453,2804.8,2803.6,0.002]
[1769712135952,13.90720453,2804.8,2803.4,0.002]
[1769712136273,13.90720453,2804.6,2803.4,0.002]
[1769712137044,13.90720453,2804.4,2803.4,0.002]
[1769712137955,13.90720453,2804.2,2803.4,0.002]
[1769712138155,13.90720453,2805.4,2803.4,0.002]
[1769712138353,16.18909526,2805.3,2803.4,0.002]
[1769712139293,13.90720453,2805.1,2803.4,0.002]
[1769712139575,13.90720453,2804.8,2803.4,0.002]
[1769712141379,13.90720453,2804.6,2803.4,0.002]
[1769712141671,13.90720453,2804.4,2803.4,0.002]
[1769712141846,15.37252498,2804.4,2803.4,0.002]
[1769712142953,15.37252498,2804.4,2803.3,0.002]
[1769712143160,13.90720453,2804.2,2802.3,0.002]
[1769712143384,13.90720453,2804.0,2802.3,0.002]
[1769712143688,13.90720453,2803.8,2802.3,0.002]
[1769712143870,13.90720453,2803.6,2802.3,0.002]
[1769712144659,0.746,2803.7,2802.3,0.002]
[1769712144863,0.89155165,2804.1,2802.6,7.4988554]
[1769712145178,0.89155165,2804.1,2802.7,0.74988554]
[1769712145362,0.746,2804.4,2803.1,7.4988554]
[1769712145565,0.89126559,2805.0,2803.2,11.03741373]
[1769712145865,3.56597945,2805.1,2803.7,0.2335703]
[1769712145866,0.89224093,2805.1,2803.7,0.2335703]
[1769712146062,0.89224093,2805.1,2803.6,7.4988554]
[1769712146063,0.89224093,2805.1,2803.8,0.77324257]
[1769712146257,13.78967488,2805.1,2803.2,0.2335703]
[1769712146804,0.89224093,2805.1,2803.7,0.2335703]
[1769712147358,0.001,2805.1,2803.8,0.89164705]
[1769712147558,0.001,2805.1,2803.9,0.44582352]
[1769712149952,12.89843395,2805.1,2803.9,0.44582352]
[1769712150157,12.89843395,2805.1,2803.7,0.89167074]
[1769712150369,12.89843395,2805.1,2803.5,3.56693118]
[1769712150588,12.89843395,2805.1,2803.6,0.89168968]
[1769712150789,12.89743395,2804.9,2803.6,0.89168968]
[1769712151203,12.89743395,2804.9,2803.5,0.89173774]
[1769712151402,14.18717734,2804.8,2803.5,0.89173774]
[1769712151715,14.18717734,2804.8,2803.0,0.89188388]
[1769712151894,12.89743395,2804.7,2803.1,0.89186479]
[1769712152055,12.89743395,2804.5,2802.9,0.8919096]
[1769712152259,12.89743395,2804.3,2802.9,1.41287668]
[1769712154509,0.89151986,2804.2,2802.9,1.41287668]
[1769712154804,13.4668305,2804.0,2802.4,0.89207514]
[1769712155189,13.4668305,2804.0,2802.3,0.89411754]
[1769712155578,13.4668305,2803.9,2802.3,0.002]
[1769712155780,13.4668305,2803.7,2802.3,0.002]
[1769712156080,13.4668305,2803.5,2802.3,0.002]
[1769712156275,14.2128305,2803.4,2802.3,0.002]
[1769712156474,0.746,2803.4,2802.7,0.89197092]
[1769712156679,1.63778177,2803.4,2802.3,0.002]
[1769712157987,0.89178177,2803.4,2802.3,0.002]
[1769712158195,1.63851986,2804.2,2802.3,0.2355703]
[1769712158510,2.89414298,2804.1,2802.3,11.03941373]
[1769712158710,0.89158345,2804.0,2802.4,0.89209249]
[1769712160024,14.35841395,2804.0,2802.4,0.89209249]
[1769712160584,0.89158345,2804.0,2802.5,0.2335703]
[1769712160816,3.5663338,2804.1,2802.6,0.89202883]
[1769712161108,3.5663338,2804.1,2802.7,0.44601441]
[1769712161417,1.63854153,2804.2,2802.8,0.2335703]
[1769712161619,1.63852215,2804.2,2802.8,0.2335703]
[1769712161792,1.63854167,2804.2,2802.8,0.2335703]
[1769712161993,1.63854167,2804.2,2802.9,0.81784401]
[1769712164517,1.63854167,2804.2,2803.0,0.89190153]
[1769712164922,1.28974339,2804.8,2803.1,0.2335703]
[1769712165084,0.89136092,2804.7,2803.1,0.2335703]
[1769712165513,14.35819142,2804.7,2803.0,0.89190153]
[1769712165703,13.4668305,2804.5,2802.9,0.81784401]
[1769712165902,13.4668305,2804.3,2802.8,0.89194564]
[1769712166107,13.4668305,2804.0,2802.3,0.002]
[1769712166413,13.4668305,2803.8,2802.3,0.002]
[1769712167000,13.4668305,2803.2,2802.2,0.002]
[1769712167190,13.4668305,2803.0,2801.2,0.002]
[1769712167398,13.4668305,2803.0,2801.5,0.89236107]
[1769712167596,13.4668305,2803.0,2801.7,0.89231421]
[1769712167791,13.4668305,2802.8,2801.7,0.89231421]
[1769712168407,0.891997,2802.7,2801.2,0.002]
[1769712168616,0.891997,2802.7,2801.3,7.4988554]
[1769712169516,0.891997,2802.7,2801.2,0.002]
[1769712169517,14.3588275,2802.7,2801.2,0.002]
[1769712169695,13.4668305,2802.5,2801.2,0.002]
[1769712170609,0.89209249,2802.4,2801.2,0.002]
[1769712172525,17.03520046,2802.5,2801.2,0.002]
[1769712172526,0.89207522,2802.5,2801.2,0.002]
[1769712172728,2.31334822,2802.9,2801.3,7.4988554]
[1769712172904,0.89195656,2802.9,2801.3,7.4988554]
[1769712173100,0.747,2803.1,2801.8,7.4988554]
[1769712173305,0.747,2803.1,2801.4,11.78641373]
[1769712173306,1.63888652,2803.1,2801.6,0.2335703]
[1769712173623,1.63888652,2803.1,2801.4,0.2335703]
[1769712173931,0.89188652,2803.1,2801.4,11.03941373]
[1769712174393,14.35871702,2803.1,2801.4,0.2335703]
[1769712174594,14.35871702,2803.1,2801.5,0.89237908]
[1769712176728,14.35871702,2803.1,2801.4,3.56951633]
[1769712176928,1.79261959,2803.0,2801.5,1.19607827]
[1769712177628,14.35871702,2803.1,2801.5,1.19607827]
[1769712177924,14.35871702,2803.1,2801.5,1.19807827]
[1769712178336,0.001,2802.9,2801.5,1.19807827]
[1769712178855,0.001,2802.9,2801.6,0.89234723]
[1769712180723,12.6310667,2802.9,2801.6,0.89234723]
[1769712180934,0.891997,2802.7,2801.5,1.19807827]
[1769712181136,0.891997,2802.7,2801.5,0.89436318]
[1769712181137,13.5220637,2802.7,2801.5,0.89436318]
[1769712181621,13.5220637,2802.7,2801.7,0.89230381]
[1769712181830,3.56898801,2802.9,2801.7,0.89230381]
[1769712181831,0.001,2802.9,2801.8,17.64627213]
[1769712182023,12.6300667,2803.9,2801.7,0.89230381]
[1769712182024,13.52174555,2803.7,2801.9,1.85385759]
[1769712182224,16.3980667,2803.5,2801.7,0.89230381]
[1769712182424,0.89167885,2803.7,2801.5,0.89437441]
[1769712182425,12.6300667,2802.9,2801.5,0.89437441]
[1769712182608,12.6300667,2802.7,2801.5,0.002]
[1769712182805,12.6300667,2802.4,2801.3,0.002]
[1769712183037,12.6300667,2802.4,2801.2,0.002]
[1769712183038,12.6300667,2802.3,2801.2,0.002]
[1769712183207,13.98227944,2802.3,2801.2,0.002]
[1769712184812,0.89215616,2802.2,2801.2,0.002]
[1769712187127,0.89202883,2802.6,2801.2,0.002]
[1769712187327,1.63898428,2802.8,2801.4,0.2335703]
[1769712187634,1.63898428,2802.8,2801.5,0.77324257]
[1769712188521,12.6300667,2802.6,2801.2,0.002]
[1769712189124,12.6300667,2802.4,2801.2,0.002]
[1769712190941,0.89206066,2802.5,2801.2,0.002]
[1769712190942,12.6300667,2802.3,2801.2,0.002]
[1769712191342,12.6300667,2802.1,2801.2,0.002]
[1769712191541,12.6300667,2801.9,2801.2,0.002]
[1769712193559,0.89228353,2801.8,2801.2,0.002]
[1769712195754,2.24446951,2802.0,2801.2,0.002]
[1769712196059,0.89224722,2802.0,2801.2,0.002]
[1769712196561,12.6300667,2801.9,2801.2,0.002]
[1769712197626,0.89228353,2801.8,2801.2,0.002]
[1769712205164,12.6300667,2801.7,2800.9,0.002]
[1769712205463,0.89228353,2801.8,2800.9,0.002]
[1769712205841,1.69533687,2801.8,2800.9,0.002]
[1769712206032,14.77560625,2801.8,2800.9,0.002]
[1769712206456,5.45533687,2801.8,2800.9,0.002]
[1769712206632,13.08026938,2801.5,2800.1,0.002]
[1769712206844,13.08026938,2801.3,2800.1,0.002]
[1769712208467,0.747,2801.4,2800.1,0.002]
[1769712208969,0.89244279,2801.3,2800.1,0.002]
[1769712211664,0.89250651,2801.1,2800.1,0.002]
[1769712211975,13.08026938,2801.0,2798.4,9.92184643]
[1769712212165,16.84026938,2800.4,2799.3,0.89307784]
[1769712212346,17.58726938,2800.3,2799.1,0.89312121]
[1769712212670,1.75872694,2800.2,2799.3,0.8930569]
[1769712212973,0.747,2800.3,2799.7,0.89294825]
[1769712213171,0.747,2800.3,2798.6,13.49505014]
[1769712213342,14.31346597,2800.3,2799.3,0.89305342]
[1769712213547,14.31346597,2800.3,2799.2,0.89309197]
[1769712213743,0.89279337,2800.2,2798.7,0.89327187]
[1769712213968,1.87774328,2800.1,2798.8,1.43882058]
[1769712214650,21.64463945,2800.3,2798.8,1.43882058]
[1769712214651,0.747,2800.3,2798.8,11.36066701]
[1769712214846,14.45923002,2800.3,2798.8,1.43882058]
[1769712215457,14.45923002,2800.3,2798.8,11.36066701]
[1769712215866,0.89276405,2800.3,2798.9,0.89320804]
[1769712216080,0.89276405,2800.3,2798.9,10.81505447]
[1769712216281,1.3391343,2800.3,2799.0,1.58267072]
[1769712216583,0.89276405,2800.3,2799.0,11.50451715]
[1769712216880,0.89266585,2800.6,2799.0,11.50651715]
[1769712217678,3.57012022,2801.1,2799.3,9.92184643]
[1769712217679,13.56646597,2801.1,2799.3,9.92184643]
[1769712217885,14.45900434,2801.0,2799.4,0.89304851]
[1769712218987,14.45900434,2801.0,2799.4,10.81489494]
[1769712219186,14.45900434,2801.0,2799.5,10.64323965]
[1769712219793,14.45900434,2801.0,2799.6,0.89298471]
[1769712223288,17.13601894,2801.5,2799.8,0.2335703]
[1769712223471,17.13601894,2801.5,2799.9,9.92184643]
[1769712223672,1.8029398,2801.4,2800.0,0.99218464]
[1769712224076,15.36940577,2801.4,2800.0,0.99218464]
[1769712224504,0.89244279,2801.3,2800.1,0.89282525]
[1769712224704,3.23256006,2801.3,2800.2,0.44663594]
[1769712227100,0.89244279,2801.3,2800.3,0.89276148]
[1769712229271,13.56646597,2800.4,2798.8,0.002]
[1769712229482,13.56646597,2799.7,2798.0,2.77]
[1769712229792,1.7326466,2799.6,2798.0,16.36589954]
[1769712229994,0.747,2800.0,2798.1,12.70240518]
[1769712230506,0.747,2800.0,2798.3,12.70240518]
[1769712230808,13.56646597,2800.5,2798.7,12.70240518]